bitfinex/quotes_BTCUSD_20250213
["timestamp","ask_amount","ask_price","bid_price","bid_amount"]
[1739471413909,0.156504,95844.0,95841.0,0.0828]
[1739471414134,1.414319,95844.0,95843.0,0.00035564]
[1739471415643,0.32312,95844.0,95843.0,0.00035564]
[1739471415868,0.234642,95844.0,95843.0,0.00035564]
[1739471416084,0.234642,95844.0,95843.0,0.25936429]
[1739471416085,0.118996,95844.0,95843.0,0.25936429]
[1739471416291,0.02124007,95871.0,95843.0,0.23315929]
[1739471416493,0.02124007,95871.0,95844.0,0.10250365]
[1739471416494,1.40460748,95870.0,95844.0,0.10250365]
[1739471416702,0.65617,95869.0,95846.0,0.0805]
[1739471416917,1.096045,95868.0,95852.0,0.156489]
[1739471417063,0.156477,95861.0,95853.0,0.10250365]
[1739471417220,0.588132,95867.0,95853.0,0.10250365]
[1739471417452,0.156476,95861.0,95853.0,0.10250365]
[1739471417812,0.248383,95860.0,95853.0,0.10250365]
[1739471418116,1.236141,95869.0,95856.0,0.156484]
[1739471418335,0.156472,95864.0,95853.0,0.10250365]
[1739471418459,0.142429,95863.0,95856.0,0.156483]
[1739471418674,0.156473,95863.0,95857.0,0.0786]
[1739471418886,0.173322,95862.0,95857.0,0.0786]
[1739471419117,0.173322,95862.0,95857.0,0.235083]
[1739471419332,0.209867,95863.0,95859.0,0.156478]
[1739471419673,0.241265,95864.0,95859.0,0.156478]
[1739471420003,0.241265,95864.0,95857.0,0.0786]
[1739471420004,0.212867,95864.0,95857.0,0.0786]
[1739471420157,0.212867,95864.0,95860.0,0.156478]
[1739471420360,0.212867,95864.0,95861.0,0.156476]
[1739471420587,0.0001066,95889.0,95862.0,0.10250365]
[1739471420762,0.004,95863.0,95862.0,0.25897765]
[1739471421187,0.004,95863.0,95862.0,0.55657765]
[1739471421591,0.0001066,95878.0,95877.0,0.23265]
[1739471422359,0.0001066,95878.0,95877.0,0.40615365]
[1739471423538,0.0001066,95878.0,95877.0,0.25070365]
[1739471423769,0.6807806,95878.0,95877.0,0.1252]
[1739471423990,1.0274986,95878.0,95877.0,0.1252]
[1739471424197,1.0482506,95878.0,95877.0,0.1292]
[1739471424407,1.0108726,95878.0,95877.0,0.005]
[1739471424615,1.0108726,95878.0,95877.0,0.004]
[1739471424823,0.15646,95871.0,95870.0,0.0793]
[1739471425227,0.791675,95871.0,95870.0,0.0793]
[1739471425401,0.97457,95871.0,95870.0,0.0793]
[1739471425607,0.874763,95871.0,95870.0,0.0793]
[1739471426014,0.599695,95871.0,95870.0,0.0793]
[1739471427974,0.443235,95871.0,95870.0,0.0793]
[1739471428217,0.470255,95872.0,95870.0,0.0793]
[1739471428371,0.0001066,95878.0,95877.0,0.15645]
[1739471428786,0.0001066,95878.0,95877.0,0.25895365]
[1739471428985,0.0001066,95878.0,95877.0,0.38445365]
[1739471429968,0.0001066,95878.0,95877.0,0.22800365]
[1739471430345,0.0001066,95878.0,95877.0,0.23100365]
[1739471430492,0.0001066,95878.0,95877.0,0.38745365]
[1739471430713,0.0001066,95878.0,95877.0,0.23100365]
[1739471430917,0.0001066,95878.0,95877.0,0.41045365]
[1739471431119,0.0001066,95878.0,95877.0,0.73425365]
[1739471431522,0.0001066,95878.0,95877.0,0.88425365]
[1739471431728,0.0001066,95878.0,95877.0,0.88325365]
[1739471432102,0.0001066,95878.0,95877.0,0.88525365]
[1739471432559,0.0001066,95878.0,95877.0,0.88325365]
[1739471432781,0.0001066,95878.0,95877.0,0.88125365]
[1739471432987,0.0001066,95878.0,95877.0,0.88925365]
[1739471437179,0.0001066,95878.0,95877.0,0.88525365]
[1739471437428,0.0001066,95878.0,95877.0,0.88125365]
[1739471437630,0.0001066,95878.0,95877.0,0.88725365]
[1739471438116,0.0001066,95878.0,95877.0,0.88425365]
[1739471438361,0.0001066,95878.0,95877.0,0.89025365]
[1739471438537,0.0001066,95878.0,95877.0,0.71080365]
[1739471438737,0.0001066,95878.0,95877.0,0.003]
[1739471438738,0.1565546,95878.0,95877.0,0.003]
[1739471438960,0.1565546,95878.0,95867.0,0.0775]
[1739471438961,0.156465,95868.0,95867.0,0.0775]
[1739471439118,0.156463,95869.0,95867.0,0.07763199]
[1739471439330,0.156463,95869.0,95867.0,0.00013199]
[1739471439553,0.01641818,95878.0,95867.0,0.00013199]
[1739471439760,1.466415,95877.0,95867.0,0.00013199]
[1739471439981,1.0407411,95877.0,95870.0,0.208615]
[1739471440175,0.0001066,95878.0,95867.0,0.14692447]
[1739471440176,0.0001066,95878.0,95873.0,0.101]
[1739471440397,0.0001066,95878.0,95875.0,0.156453]
[1739471440599,0.0001066,95878.0,95873.0,0.101]
[1739471440600,0.156455,95874.0,95872.0,0.15]
[1739471441001,0.208603,95876.0,95867.0,0.00013199]
[1739471441208,0.156464,95869.0,95867.0,0.15013199]
[1739471441403,0.308541,95868.0,95867.0,0.15013199]
[1739471441650,0.308541,95868.0,95867.0,0.00013199]
[1739471442837,0.309541,95868.0,95867.0,0.00013199]
[1739471443673,0.466006,95868.0,95867.0,0.00013199]
[1739471444940,0.466006,95868.0,95867.0,0.00035564]
[1739471451808,0.6710133,95868.0,95867.0,0.00035564]
[1739471452210,0.6710133,95868.0,95867.0,6.4e-07]
[1739471452211,0.5124723,95868.0,95867.0,6.4e-07]
[1739471452625,0.5224723,95868.0,95867.0,6.4e-07]
[1739471453018,0.156504,95844.0,95843.0,0.00022365]
[1739471454002,1.197246,95844.0,95843.0,0.00022365]
[1739471454209,1.203246,95844.0,95843.0,0.00022365]
[1739471458199,0.162504,95844.0,95843.0,0.00022365]
[1739471458618,1.203246,95844.0,95843.0,0.00022365]
[1739471459213,0.583854,95844.0,95843.0,0.00022365]
[1739471459766,0.436427,95844.0,95843.0,0.00022365]
[1739471460893,0.279923,95844.0,95843.0,0.00022365]
[1739471461091,0.425111,95844.0,95843.0,0.00022365]
[1739471462282,0.423111,95844.0,95843.0,0.00022365]
[1739471462702,0.421111,95844.0,95843.0,0.00022365]
[1739471463111,0.422111,95844.0,95843.0,0.00022365]
[1739471463316,0.159504,95844.0,95843.0,0.00022365]
[1739471463538,0.161504,95844.0,95843.0,0.00022365]
[1739471463739,1.06052,95844.0,95843.0,0.00022365]
[1739471463956,1.078889,95844.0,95843.0,0.00022365]
[1739471464155,1.06052,95844.0,95843.0,0.00022365]
[1739471464308,0.644366,95844.0,95843.0,0.00022365]
[1739471465424,0.444351,95844.0,95843.0,0.00022365]
[1739471465626,0.600855,95844.0,95843.0,0.00022365]
[1739471466207,0.600855,95844.0,95843.0,0.20622865]
[1739471466208,0.197961,95844.0,95843.0,0.20622865]
[1739471466415,0.005,95844.0,95843.0,0.28792865]
[1739471466628,0.005,95844.0,95843.0,0.13142365]
[1739471466834,0.005,95844.0,95843.0,0.28792865]
[1739471467039,0.003,95844.0,95843.0,0.28792865]
[1739471467244,0.003,95844.0,95843.0,0.13142365]
[1739471467544,0.11572,95844.0,95843.0,0.13142365]
[1739471467748,1.040742,95869.0,95843.0,0.13242365]
[1739471467944,0.156504,95844.0,95843.0,0.13242365]
[1739471468104,0.644583,95844.0,95843.0,0.13242365]
[1739471468302,0.795575,95844.0,95843.0,0.13342365]
[1739471468899,0.696905,95844.0,95843.0,0.13242365]
[1739471469124,0.696905,95844.0,95843.0,0.13342365]
[1739471469542,0.696905,95844.0,95843.0,0.13242365]
[1739471469695,0.696905,95844.0,95843.0,0.13142365]
[1739471469916,0.697905,95844.0,95843.0,0.13142365]
[1739471470743,0.208452,95844.0,95843.0,0.13142365]
[1739471470966,0.133187,95844.0,95843.0,0.13142365]
[1739471472361,0.001,95844.0,95843.0,0.13142365]
[1739471472564,0.157504,95844.0,95843.0,0.13142365]
[1739471472985,0.001,95844.0,95843.0,0.13142365]
[1739471473535,0.122329,95844.0,95843.0,0.28792865]
[1739471473683,0.116715,95844.0,95843.0,0.28792865]
[1739471473907,0.116715,95844.0,95843.0,0.13142365]
[1739471477544,0.116715,95844.0,95843.0,0.28792865]
[1739471477817,0.116715,95844.0,95843.0,0.13142365]
[1739471478363,0.273219,95844.0,95843.0,0.13142365]
[1739471478980,0.157504,95844.0,95843.0,0.13142365]
[1739471479175,0.347047,95844.0,95843.0,0.13142365]
[1739471479383,0.534647,95844.0,95843.0,0.13142365]
[1739471479602,0.607148,95844.0,95843.0,0.13142365]
[1739471479766,0.560315,95844.0,95843.0,0.13142365]
[1739471479969,0.352627,95844.0,95843.0,0.13142365]
[1739471481525,0.352627,95844.0,95843.0,0.04972365]
[1739471481702,0.352627,95844.0,95843.0,0.00022365]
[1739471482292,0.09051536,95844.0,95843.0,0.00022365]
[1739471482567,0.156504,95844.0,95843.0,0.00022365]
[1739471482803,1.092639,95844.0,95843.0,0.00022365]
[1739471484069,1.19514265,95844.0,95843.0,0.00022365]
[1739471485351,1.19614265,95844.0,95843.0,0.00022365]
[1739471485836,1.19514265,95844.0,95843.0,0.00022365]
[1739471486342,1.19914265,95844.0,95843.0,0.001]
[1739471486614,0.156543,95820.0,95819.0,0.0464]
[1739471486869,1.092678,95820.0,95819.0,0.04653192]
[1739471487134,0.156543,95820.0,95819.0,0.04653192]
[1739471487576,1.092678,95820.0,95819.0,0.04653192]
[1739471488057,1.094678,95820.0,95819.0,0.04653192]
[1739471488509,1.092678,95820.0,95819.0,0.00013192]
[1739471488751,1.094678,95820.0,95819.0,0.00013192]
[1739471489057,1.11303575,95820.0,95819.0,0.00013192]
[1739471489754,0.17690075,95820.0,95819.0,0.00013192]
[1739471490271,1.11103575,95820.0,95819.0,0.00013192]
[1739471490519,1.11303575,95820.0,95819.0,0.00013192]
[1739471493662,1.11103575,95820.0,95819.0,0.00013192]
[1739471493935,0.21915475,95820.0,95819.0,0.00013192]
[1739471494175,0.02035775,95820.0,95819.0,0.07605557]
[1739471494656,0.17690075,95820.0,95819.0,0.07605557]
[1739471494893,0.02035775,95820.0,95819.0,0.07605557]
[1739471495545,0.22462775,95820.0,95819.0,0.07605557]
[1739471495554,0.38117075,95820.0,95819.0,0.07605557]
[1739471495770,0.02035775,95820.0,95819.0,0.07605557]
[1739471496549,0.22462775,95820.0,95819.0,0.07605557]
[1739471496978,0.22462775,95820.0,95819.0,0.23260057]
[1739471496979,0.18682775,95820.0,95819.0,0.23260057]
[1739471497500,0.17147,95820.0,95819.0,0.23260057]
[1739471497701,0.005,95820.0,95819.0,0.12455557]
[1739471498155,0.005,95820.0,95819.0,0.28110057]
[1739471498624,0.002,95820.0,95819.0,0.28110057]
[1739471499039,0.208701,95831.0,95819.0,0.28210057]
[1739471499244,0.392529,95830.0,95821.0,0.15654]
[1739471499466,0.283639,95829.0,95821.0,0.15654]
[1739471499671,0.208692,95835.0,95820.0,0.208723]
[1739471499672,0.355523,95830.0,95820.0,0.208723]
[1739471499783,0.251473,95829.0,95819.0,0.12555557]
[1739471499983,0.156526,95831.0,95824.0,0.023]
[1739471500228,0.156528,95830.0,95824.0,0.10250365]
[1739471500646,0.001,95829.0,95824.0,0.10250365]
[1739471500831,0.001,95829.0,95824.0,0.12550365]
[1739471500832,0.156535,95825.0,95824.0,0.12550365]
[1739471501037,0.156541,95821.0,95819.0,0.12455557]
[1739471501208,0.284105,95820.0,95819.0,0.12455557]
[1739471501425,0.205005,95820.0,95819.0,0.12455557]
[1739471501629,0.003,95829.0,95819.0,0.12455557]
[1739471501844,0.156541,95822.0,95819.0,0.12455557]
[1739471502067,0.338055,95821.0,95819.0,0.12455557]
[1739471502575,0.156543,95820.0,95819.0,0.12455557]
[1739471502787,0.142582,95820.0,95819.0,0.12455557]
[1739471502965,0.156541,95822.0,95819.0,0.12455557]
[1739471502966,0.284901,95821.0,95819.0,0.12455557]
[1739471503282,0.01509996,95831.0,95819.0,0.12455557]
[1739471503283,0.156543,95820.0,95819.0,0.12655557]
[1739471503482,0.464097,95822.0,95819.0,0.12655557]
[1739471503702,0.154154,95821.0,95819.0,0.12455557]
[1739471503904,0.01509996,95831.0,95819.0,0.12555557]
[1739471504044,0.156543,95820.0,95819.0,0.12755557]
[1739471504267,0.569186,95820.0,95819.0,0.12755557]
[1739471504470,0.407643,95820.0,95819.0,0.12755557]
[1739471504668,0.447219,95821.0,95819.0,0.12755557]
[1739471505294,0.603761,95821.0,95819.0,0.12755557]
[1739471505569,0.255208,95820.0,95819.0,0.12555557]
[1739471505781,0.156526,95831.0,95822.0,0.156539]
[1739471505985,0.228774,95830.0,95819.0,0.12555557]
[1739471506155,0.156535,95825.0,95819.0,0.12555557]
[1739471506311,0.217959,95824.0,95819.0,0.12655557]
[1739471506521,0.156543,95820.0,95819.0,0.12555557]
[1739471506701,0.156543,95820.0,95819.0,0.12455557]
[1739471506702,0.398915,95820.0,95819.0,0.12455557]
[1739471506907,0.39578,95820.0,95819.0,0.12455557]
[1739471507442,0.552323,95820.0,95819.0,0.12455557]
[1739471508433,0.156539,95823.0,95819.0,0.12455557]
[1739471508632,0.113354,95822.0,95819.0,0.33327957]
[1739471508914,0.113354,95823.0,95822.0,0.15654]
[1739471509066,0.233613,95830.0,95822.0,0.15654]
[1739471509278,0.211993,95830.0,95822.0,0.15654]
[1739471509475,0.36852,95830.0,95822.0,0.15654]
[1739471509678,0.36852,95830.0,95819.0,0.12455557]
[1739471509679,0.001,95823.0,95821.0,0.156541]
[1739471509946,0.110509,95822.0,95820.0,0.156542]
[1739471510366,0.205199,95829.0,95819.0,0.12455557]
[1739471510631,0.005,95830.0,95819.0,0.12455557]
[1739471510632,0.002,95830.0,95829.0,0.156528]
[1739471510856,0.0001065,95867.0,95842.0,0.306507]
[1739471511079,0.0001065,95867.0,95842.0,0.55561065]
[1739471511525,0.1565735,95867.0,95842.0,0.55561065]
[1739471511764,0.0001065,95867.0,95842.0,0.55561065]
[1739471512015,0.01495192,95857.0,95842.0,0.55561065]
[1739471512654,0.01495192,95857.0,95842.0,0.56961065]
[1739471512881,0.01495192,95857.0,95842.0,0.56261065]
[1739471513106,0.15647,95865.0,95842.0,0.56161065]
[1739471513518,0.15647,95865.0,95842.0,0.56261065]
[1739471513959,0.15647,95865.0,95842.0,0.56861065]
[1739471514814,0.156468,95866.0,95842.0,0.56861065]
[1739471515016,0.0001065,95867.0,95842.0,0.56861065]
[1739471515677,0.0001065,95867.0,95842.0,0.56261065]
[1739471515890,0.0001065,95867.0,95866.0,0.285368]
[1739471516078,0.0001065,95867.0,95866.0,0.41087165]
[1739471516909,0.0001065,95867.0,95866.0,0.56087165]
[1739471517110,0.00115046,95867.0,95866.0,0.56087165]
[1739471518866,0.00015046,95867.0,95866.0,0.56587165]
[1739471519204,0.00015046,95867.0,95866.0,0.56987165]
[1739471519438,0.00015046,95867.0,95866.0,0.89367165]
[1739471520466,0.0001065,95877.0,95876.0,0.306452]
[1739471520729,0.0001065,95877.0,95876.0,0.56225565]
[1739471521688,0.0001065,95877.0,95876.0,0.56425565]
[1739471522323,0.0001065,95877.0,95876.0,0.56325565]
[1739471522649,0.0001065,95877.0,95876.0,0.56925565]
[1739471522814,0.0001065,95877.0,95876.0,0.57525565]
[1739471523147,0.00015048,95877.0,95876.0,0.57525565]
[1739471523799,0.00015048,95877.0,95876.0,0.56225565]
[1739471524108,0.00015048,95877.0,95876.0,0.57625565]
[1739471524259,0.00015048,95877.0,95876.0,0.59730766]
[1739471524665,0.00015048,95877.0,95876.0,0.56925565]
[1739471524882,0.00015048,95877.0,95876.0,0.57625565]
[1739471525632,0.00015048,95877.0,95876.0,1.43525565]
[1739471530160,0.00015048,95877.0,95876.0,1.27880365]
[1739471530511,0.15660048,95877.0,95876.0,0.97550365]
[1739471530956,0.15660048,95877.0,95876.0,0.96850365]
[1739471531168,0.00015048,95877.0,95876.0,0.99150365]
[1739471531376,0.00015048,95877.0,95876.0,0.45630365]
[1739471531732,0.00015048,95877.0,95876.0,0.44930365]
[1739471532131,0.00015048,95877.0,95867.0,0.00022365]
[1739471532132,0.01467787,95877.0,95867.0,0.00022365]
[1739471532346,0.28134448,95877.0,95867.0,0.00022365]
[1739471532537,0.190269,95876.0,95867.0,0.00022365]
[1739471532762,0.190269,95876.0,95867.0,0.15022365]
[1739471532763,0.11946,95876.0,95867.0,0.15022365]
[1739471532968,0.154849,95876.0,95867.0,0.15022365]
[1739471533266,0.154849,95876.0,95868.0,0.10250365]
[1739471533491,0.00115048,95877.0,95873.0,0.023]
[1739471533692,0.00015048,95877.0,95875.0,0.023]
[1739471533864,0.00015048,95877.0,95876.0,0.12550365]
[1739471534071,0.11405848,95877.0,95876.0,0.12550365]
[1739471534510,0.00015048,95877.0,95876.0,0.51475565]
[1739471534713,0.00015048,95877.0,95876.0,0.83855565]
[1739471535012,0.00015048,95877.0,95876.0,0.88725565]
[1739471536019,0.00115048,95877.0,95876.0,0.88725565]
[1739471536215,0.00015048,95877.0,95876.0,0.88725565]
[1739471536565,0.00015048,95877.0,95876.0,0.89025565]
[1739471537480,0.00015048,95877.0,95876.0,0.89425565]
[1739471538502,0.00015048,95877.0,95876.0,1.42945565]
[1739471538972,0.00015048,95877.0,95876.0,1.42645565]
[1739471539854,0.00015048,95877.0,95876.0,1.43345565]
[1739471540055,0.00015048,95877.0,95876.0,1.42945565]
[1739471540259,0.00015048,95877.0,95876.0,1.43345565]
[1739471540702,0.00015048,95877.0,95876.0,1.42945565]
[1739471541152,0.00015048,95877.0,95876.0,1.45594095]
[1739471544102,0.00015048,95877.0,95876.0,1.43645565]
[1739471544620,0.00015048,95877.0,95876.0,1.4689032]
[1739471545818,0.0001066,95878.0,95877.0,0.32945]
[1739471546030,0.0001066,95878.0,95877.0,0.5934012]
[1739471547436,0.0001066,95878.0,95877.0,0.6004012]
[1739471547621,0.0001066,95878.0,95877.0,0.57495365]
[1739471547849,0.0001066,95878.0,95877.0,0.59446915]
[1739471548606,0.208543,95904.0,95877.0,0.59446915]
[1739471548607,0.208543,95904.0,95877.0,0.43801915]
[1739471548784,4.398e-05,95902.0,95879.0,0.27550365]
[1739471548984,0.16499,95901.0,95893.0,0.023]
[1739471549334,0.102877,95901.0,95895.0,0.173]
[1739471549536,0.144803,95901.0,95897.0,0.173]
[1739471549738,0.144803,95901.0,95899.0,0.15]
[1739471549916,0.124194,95900.0,95899.0,0.25250365]
[1739471550118,0.156412,95900.0,95899.0,0.25250365]
[1739471550332,0.156422,95894.0,95893.0,0.3238]
[1739471551349,0.20859098,95902.0,95882.0,0.3238]
[1739471551350,0.15644,95883.0,95882.0,0.3238]
[1739471551551,0.15644,95883.0,95867.0,0.07772365]
[1739471551552,0.156459,95872.0,95867.0,0.07772365]
[1739471551916,0.156463,95869.0,95868.0,0.10250365]
[1739471552122,0.0033,95887.0,95868.0,0.10250365]
[1739471552339,0.936135,95886.0,95868.0,0.10250365]
[1739471552557,0.0001065,95878.0,95868.0,0.10250365]
[1739471552763,0.724056,95877.0,95868.0,0.10250365]
[1739471552964,0.202443,95876.0,95868.0,0.10250365]
[1739471553553,0.165325,95876.0,95868.0,0.10250365]
[1739471553874,0.0001065,95878.0,95868.0,0.10250365]
[1739471553875,0.0001065,95878.0,95877.0,0.15645]
[1739471554053,0.0001065,95878.0,95877.0,0.28195365]
[1739471554969,0.0001065,95878.0,95877.0,0.12550365]
[1739471555202,0.0001065,95878.0,95864.0,0.208628]
[1739471555203,0.0001065,95878.0,95865.0,0.0814]
[1739471555387,0.0001065,95878.0,95873.0,0.156456]
[1739471555534,0.0001065,95878.0,95877.0,0.18045]
[1739471555748,0.0001065,95878.0,95877.0,0.28295365]
[1739471559027,0.0001065,95878.0,95877.0,0.47935365]
[1739471559239,0.0001065,95878.0,95877.0,0.88075365]
[1739471560816,0.0001065,95878.0,95877.0,0.88675365]
[1739471561251,0.0001065,95878.0,95877.0,0.89375365]
[1739471563967,0.0001065,95878.0,95877.0,1.42895365]
[1739471570808,0.0001065,95878.0,95877.0,1.42195365]
[1739471571004,0.0001065,95878.0,95877.0,1.42895365]
[1739471571250,0.0001065,95878.0,95877.0,1.42195365]
[1739471571451,0.0001065,95878.0,95877.0,1.42895365]
[1739471571651,0.0001065,95878.0,95877.0,1.42195365]
[1739471571852,0.0001065,95878.0,95877.0,1.42895365]
[1739471572646,0.0001065,95878.0,95877.0,1.42195365]
[1739471572852,5e-07,95878.0,95877.0,1.42195365]
[1739471573192,5e-07,95878.0,95877.0,1.42895365]
[1739471574987,0.23429396,95922.0,95881.0,0.0802]
[1739471575147,0.156383,95919.0,95910.0,0.156395]
[1739471575342,0.162123,95918.0,95911.0,0.10250365]
[1739471576147,0.162123,95918.0,95912.0,0.156392]
[1739471576537,0.16256317,95918.0,95912.0,0.156392]
[1739471576762,0.197799,95917.0,95911.0,0.10250365]
[1739471577098,0.162099,95917.0,95911.0,0.10250365]
[1739471577301,0.162099,95917.0,95915.0,0.156388]
[1739471577510,0.126399,95917.0,95911.0,0.10250365]
[1739471577733,0.126399,95917.0,95916.0,0.156386]
[1739471578284,0.00044017,95918.0,95917.0,0.156385]
[1739471579799,0.00044017,95918.0,95911.0,0.10250365]
[1739471580021,0.00044017,95918.0,95917.0,0.156385]
[1739471580345,0.00044017,95918.0,95917.0,0.12550365]
[1739471580514,0.156385,95917.0,95909.0,0.306397]
[1739471580730,0.00044017,95918.0,95914.0,0.023]
[1739471580884,0.00044017,95918.0,95915.0,0.10250365]
[1739471582191,0.00044017,95918.0,95914.0,0.15639]
[1739471582869,0.00044017,95918.0,95911.0,0.173]
[1739471583016,0.00044017,95918.0,95912.0,0.10250365]
[1739471583228,0.00044017,95918.0,95915.0,0.156388]
[1739471583431,0.00044017,95918.0,95912.0,0.31102765]
[1739471583688,0.00044017,95918.0,95913.0,0.15639]
[1739471583869,0.00044017,95918.0,95915.0,0.156388]
[1739471584110,0.00044017,95918.0,95917.0,0.156385]
[1739471585056,0.00044017,95918.0,95914.0,0.156388]
[1739471585057,0.16551117,95918.0,95914.0,0.156388]
[1739471585261,0.00044017,95918.0,95914.0,0.156388]
[1739471585462,0.00044017,95918.0,95917.0,0.156385]
[1739471586231,0.12129817,95918.0,95917.0,0.156385]
[1739471586411,0.00044017,95918.0,95917.0,0.156385]
[1739471587165,0.00044017,95918.0,95917.0,0.56143118]
[1739471587371,0.00044017,95918.0,95917.0,0.56038865]
[1739471589170,0.00044017,95918.0,95917.0,0.56638865]
[1739471590029,0.00044017,95918.0,95917.0,1.10858865]
[1739471590571,0.00044017,95918.0,95917.0,1.10158865]
[1739471590989,0.00044017,95918.0,95917.0,1.10858865]
[1739471591395,0.00044017,95918.0,95917.0,1.10158865]
[1739471592445,0.00044017,95918.0,95917.0,1.09558865]
[1739471592650,0.00044017,95918.0,95917.0,1.10958865]
[1739471592855,0.00044017,95918.0,95917.0,1.10258865]
[1739471593462,0.00044017,95918.0,95917.0,1.09558865]
[1739471593673,0.00044017,95918.0,95917.0,0.89118865]
[1739471593872,0.00044017,95918.0,95917.0,0.73480365]
[1739471594091,0.00044017,95918.0,95917.0,0.89618865]
[1739471594696,0.00044017,95918.0,95917.0,0.88918865]
[1739471594900,0.00044017,95918.0,95917.0,0.43130365]
[1739471595309,0.00044017,95918.0,95917.0,0.3288]
[1739471595522,0.15682317,95918.0,95917.0,0.005]
[1739471595925,0.156388,95915.0,95914.0,0.00022365]
[1739471596240,0.489999,95915.0,95914.0,0.00022365]
[1739471596458,0.541351,95915.0,95914.0,0.00022365]
[1739471596876,0.527818,95915.0,95914.0,0.00022365]
[1739471597082,0.30514,95915.0,95914.0,0.00022365]
[1739471597211,0.156388,95915.0,95914.0,0.00022365]
[1739471597665,0.421968,95915.0,95914.0,0.00022365]
[1739471597841,0.270758,95915.0,95914.0,0.00022365]
[1739471598040,0.294146,95917.0,95914.0,0.00022365]
[1739471598298,0.936135,95917.0,95914.0,0.00022365]
[1739471598505,0.156388,95915.0,95914.0,0.00022365]
[1739471598700,0.215924,95915.0,95914.0,0.00022365]
[1739471599035,0.260787,95917.0,95914.0,0.00022365]
[1739471599201,0.156388,95915.0,95914.0,0.00022365]
[1739471599418,0.470201,95915.0,95914.0,0.00022365]
[1739471599565,0.493059,95915.0,95914.0,0.00022365]
[1739471600127,0.156388,95915.0,95914.0,0.00022365]
[1739471600336,1.092523,95915.0,95914.0,0.00022365]
[1739471601309,1.131623,95915.0,95914.0,0.00022365]
[1739471601514,1.092523,95915.0,95914.0,0.00022365]
[1739471601688,0.858168,95915.0,95914.0,0.00022365]
[1739471602682,0.156437,95885.0,95884.0,0.08348073]
[1739471603026,0.15644,95883.0,95876.0,0.023]
[1739471604574,0.156411,95901.0,95892.0,0.156425]
[1739471604844,0.01321434,95901.0,95892.0,0.10250365]
[1739471605069,0.01321434,95901.0,95897.0,0.156417]
[1739471605224,0.156406,95905.0,95897.0,0.156417]
[1739471605425,0.274919,95904.0,95898.0,0.156415]
[1739471605650,0.274919,95904.0,95892.0,0.31107065]
[1739471605818,0.01330171,95904.0,95892.0,0.10250365]
[1739471606035,0.14679248,95910.0,95892.0,0.10250365]
[1739471606036,0.591484,95903.0,95892.0,0.10250365]
[1739471606231,0.002,95901.0,95896.0,0.156418]
[1739471606453,0.136519,95900.0,95896.0,0.156418]
[1739471606885,0.288435,95903.0,95902.0,0.156409]
[1739471607153,0.288435,95903.0,95893.0,0.023]
[1739471607154,0.13559,95903.0,95893.0,0.023]
[1739471607291,0.002,95904.0,95894.0,0.10250365]
[1739471607455,0.002,95904.0,95897.0,0.156416]
[1739471607456,0.374261,95903.0,95897.0,0.156416]
[1739471607688,0.002,95904.0,95894.0,0.10250365]
[1739471607689,0.002,95900.0,95899.0,0.156414]
[1739471607908,0.01559474,95904.0,95894.0,0.10250365]
[1739471608127,0.002,95903.0,95901.0,0.156411]
[1739471608342,0.137029,95903.0,95899.0,0.156413]
[1739471608592,0.130014,95902.0,95898.0,0.208553]
[1739471609107,0.130014,95902.0,95900.0,0.156412]
[1739471609930,0.131014,95902.0,95900.0,0.156412]
[1739471610161,0.122255,95901.0,95900.0,0.156412]
[1739471610591,0.01361708,95908.0,95907.0,0.156401]
[1739471611025,0.0004399,95910.0,95905.0,0.208537]
[1739471611153,0.0004399,95910.0,95902.0,0.208545]
[1739471611574,0.0004399,95910.0,95907.0,0.1564]
[1739471612027,0.0004399,95910.0,95907.0,0.156399]
[1739471612934,0.0004399,95910.0,95909.0,0.156398]
[1739471612935,0.01371551,95910.0,95909.0,0.156398]
[1739471613462,0.0004399,95910.0,95907.0,0.001]
[1739471613925,0.0004399,95910.0,95906.0,0.156403]
[1739471614125,0.01411075,95910.0,95905.0,0.156404]
[1739471614331,0.156403,95907.0,95901.0,0.15]
[1739471614534,0.0004399,95910.0,95900.0,0.156412]
[1739471614535,0.1564,95908.0,95902.0,0.156409]
[1739471614696,0.329599,95907.0,95902.0,0.156409]
[1739471614902,0.329599,95907.0,95901.0,0.15]
[1739471615142,0.276733,95908.0,95904.0,0.156405]
[1739471615387,0.162523,95907.0,95906.0,0.156403]
[1739471615507,0.104794,95909.0,95908.0,0.156399]
[1739471615713,0.0004399,95910.0,95909.0,0.156398]
[1739471617873,0.0004399,95910.0,95909.0,0.41160165]
[1739471618130,0.0004399,95910.0,95909.0,0.25520365]
[1739471618983,0.0004399,95910.0,95901.0,0.15]
[1739471619186,0.156402,95907.0,95903.0,0.15]
[1739471619391,0.435938,95906.0,95903.0,0.15]
[1739471619501,0.699944,95909.0,95903.0,0.15]
[1739471619709,0.488485,95908.0,95903.0,0.15]
[1739471619904,0.442436,95908.0,95903.0,0.15]
[1739471620116,0.394114,95909.0,95903.0,0.358542]
[1739471620377,0.134292,95908.0,95905.0,0.15]
[1739471620577,0.193633,95909.0,95905.0,0.15]
[1739471620790,0.157253,95909.0,95908.0,0.306399]
[1739471620943,0.0004399,95910.0,95909.0,0.156398]
[1739471621352,0.0004399,95910.0,95909.0,0.35790165]
[1739471622800,0.0004399,95910.0,95909.0,0.36190165]
[1739471623603,0.0004399,95910.0,95909.0,0.36490165]
[1739471624625,0.0004399,95910.0,95909.0,0.51490165]
[1739471624828,0.0004399,95910.0,95909.0,0.56000165]
[1739471625243,0.0004399,95910.0,95909.0,0.0521]
[1739471625469,0.0004399,95910.0,95909.0,0.007]
[1739471626283,0.0004399,95910.0,95906.0,0.15]
[1739471626684,0.156398,95909.0,95901.0,0.2321]
[1739471626923,0.156399,95908.0,95907.0,0.00022365]
[1739471627138,0.0004399,95910.0,95907.0,0.00022365]
[1739471627513,0.156398,95909.0,95907.0,0.00022365]
[1739471627710,0.156399,95908.0,95907.0,0.00022365]
[1739471628133,0.747883,95908.0,95907.0,0.00022365]
[1739471629562,0.748883,95908.0,95907.0,0.00022365]
[1739471629790,0.749883,95908.0,95907.0,0.00022365]
[1739471631988,0.696092,95908.0,95907.0,0.00022365]
[1739471632194,0.66576,95908.0,95907.0,0.00022365]
[1739471634528,0.158399,95908.0,95907.0,0.00022365]
[1739471634956,0.749883,95908.0,95907.0,0.00022365]
[1739471636409,0.85238665,95908.0,95907.0,0.00022365]